bitfinex-derivatives/quotes_SOLF0:USTF0_20251101
["timestamp","ask_amount","ask_price","bid_price","bid_amount"]
[1761997861812,11.99171589,185.99,185.98,75.64]
[1761997863418,2.72,185.98,185.97,5.01971675]
[1761997863723,2.72,185.97,185.96,72.81971675]
[1761997863925,11.99171589,185.97,185.96,72.81971675]
[1761997869332,9.27171589,185.97,185.96,70.75]
[1761997874130,9.27171589,185.97,185.96,77.45013781]
[1761997878433,9.27171589,185.97,185.96,70.75]
[1761997884037,9.27171589,185.97,185.96,80.8169088]
[1761997885237,4.55728288,185.97,185.96,70.75]
[1761997885433,2.93,186.04,185.97,2.95]
[1761997885633,9.31771459,186.03,186.02,5.03228915]
[1761997886139,12.24771459,186.03,186.02,5.03228915]
[1761997887040,7.6503299,186.03,186.02,5.03228915]
[1761997887236,12.24655294,186.03,186.01,80.67228915]
[1761997887540,9.31655294,186.02,186.01,80.67228915]
[1761997887941,9.31655294,186.02,186.01,85.18539238]
[1761997888148,9.31655294,186.02,186.01,80.15310323]
[1761997889144,9.31655294,186.02,186.01,86.85736558]
[1761997889640,9.31655294,186.02,186.01,80.15310323]
[1761997890141,9.31655294,186.02,186.01,86.85495415]
[1761997893346,9.31655294,186.02,186.01,85.02185092]
[1761997894245,4.59622304,186.02,186.01,85.02185092]
[1761997896140,4.59622304,186.02,186.01,78.32]
[1761997896342,2.7,186.09,186.02,2.68]
[1761997896537,9.29422614,186.08,186.04,2.68]
[1761997896734,9.29422614,186.07,186.06,2.68]
[1761997897734,9.29358665,186.07,186.06,2.68]
[1761997900648,2.7,186.06,186.05,75.62]
[1761997900846,9.29358665,186.06,186.05,78.3]
[1761997901942,9.29358665,186.06,186.05,83.31996885]
[1761997902248,2.7,186.09,186.05,83.31996885]
[1761997902442,9.30136563,186.08,186.06,2.68]
[1761997902644,9.30136563,186.07,186.06,2.68]
[1761997903357,2.7,186.11,186.07,2.68]
[1761997903649,2.86090199,186.18,186.08,78.32]
[1761997903650,11.99891964,186.1,186.08,78.32]
[1761997903949,9.29891964,186.09,186.08,78.32]
[1761997905753,11.99891964,186.09,186.08,75.64]
[1761997912352,11.99342354,186.09,186.08,75.64]
[1761997913654,11.99342354,186.09,186.08,78.32]
[1761997913967,9.29342354,186.09,186.08,78.32]
[1761997915663,2.75,186.14,186.09,2.68]
[1761997915862,9.29113357,186.13,186.09,2.68]
[1761997916061,9.29113357,186.12,186.09,2.68]
[1761997916258,2.75,186.14,186.09,2.68]
[1761997916259,4.59192104,186.11,186.09,2.68]
[1761997916465,2.75,186.14,186.09,2.68]
[1761997916663,2.75,186.12,186.09,2.68]
[1761997916863,4.59154467,186.11,186.09,2.68]
[1761997917166,2.75,186.12,186.09,2.68]
[1761997917363,4.59102798,186.11,186.09,2.68]
[1761997917563,2.75,186.12,186.09,2.68]
[1761997917761,4.59081646,186.11,186.09,2.68]
[1761997918059,2.75,186.12,186.09,2.68]
[1761997918259,4.59081646,186.11,186.09,2.68]
[1761997918463,2.75,186.12,186.09,2.68]
[1761997918667,4.5907662,186.11,186.09,2.68]
[1761997918866,2.75,186.12,186.09,2.68]
[1761997919065,4.59078866,186.11,186.09,2.68]
[1761997919258,2.75,186.12,186.09,2.68]
[1761997919459,4.59108193,186.11,186.09,2.68]
[1761997919660,2.75,186.12,186.09,2.68]
[1761997919862,4.59108214,186.11,186.09,2.68]
[1761997920067,2.75,186.12,186.09,2.68]
[1761997920273,4.59108214,186.11,186.09,2.68]
[1761997920568,2.75,186.12,186.09,2.68]
[1761997920773,4.5915107,186.11,186.09,2.68]
[1761997920969,2.75,186.12,186.09,2.68]
[1761997921171,4.59109364,186.11,186.1,2.68]
[1761997921876,2.75,186.1,186.08,75.64]
[1761997922074,7.34109364,186.09,186.08,75.64]
[1761997922475,9.29059495,186.09,186.08,75.64]
[1761997922675,9.29059495,186.09,186.08,78.32]
[1761997924078,12.04059495,186.09,186.08,75.64]
[1761997924475,12.04059495,186.09,186.07,7.69996885]
[1761997924778,2.75,186.14,186.08,78.3]
[1761997924971,2.75,186.12,186.08,78.3]
[1761997925174,12.04614154,186.11,186.08,78.3]
[1761997925375,9.29614154,186.1,186.08,78.3]
[1761997925681,9.29614154,186.09,186.08,78.3]
[1761997926874,9.29614154,186.09,186.08,83.31996885]
[1761997927576,9.29614154,186.09,186.08,78.3]
[1761997927773,12.04614154,186.09,186.08,75.62]
[1761997928178,9.29614154,186.09,186.08,78.3]
[1761997930175,12.04614154,186.09,186.08,75.62]
[1761997930588,2.75,186.08,186.05,7.69996885]
[1761997930885,9.29614154,186.07,186.06,75.62]
[1761997932190,9.29614154,186.07,186.06,80.63996885]
[1761997932388,9.29614154,186.07,186.06,83.31996885]
[1761997933090,9.29614154,186.07,186.06,78.3]
[1761997936696,9.29614154,186.07,186.04,6.70185092]
[1761997936697,2.84,186.06,186.04,9.62185092]
[1761997936883,9.29614154,186.05,186.04,7.94518717]
[1761997937087,9.29614154,186.05,186.04,78.54]
[1761997940493,12.20614154,186.05,186.04,80.64607917]
[1761997941288,12.20614154,186.05,186.04,75.62]
[1761997947493,12.20614154,186.05,185.98,9.39185092]
[1761997947494,2.91,186.04,185.98,5.02607917]
[1761997947696,2.91,186.02,185.97,83.37607917]
[1761997947888,2.91,186.0,185.97,83.37607917]
[1761997948088,9.29614154,185.99,185.97,83.37607917]
[1761997948287,9.29614154,185.98,185.97,83.37607917]
[1761997950294,9.29614154,185.98,185.97,78.35]
[1761997955105,4.59462063,185.98,185.97,78.35]
[1761997956010,2.91,186.03,185.97,78.35]
[1761997956202,2.91,186.01,185.98,2.69]
[1761997956402,9.28781583,186.0,185.98,2.69]
[1761997956707,4.59568355,185.99,185.98,2.69]
[1761997957108,2.91,186.01,185.98,2.69]
[1761997957298,9.28495774,186.0,185.98,2.69]
[1761997957493,9.28415018,185.99,185.97,75.66]
[1761997957699,2.91,185.97,185.95,2.69]
[1761997957898,2.91,185.97,185.96,75.68]
[1761997958107,7.50388208,185.97,185.96,75.68]
[1761997958302,7.50388208,185.97,185.94,2.69]
[1761997958507,2.91,186.0,185.96,2.69]
[1761997958709,2.91,185.98,185.96,2.69]
[1761997958907,4.59271949,185.97,185.96,2.69]
[1761997960608,2.91,185.96,185.93,2.69]
[1761997960804,1.83274346,186.02,185.94,78.39]
[1761997961103,2.91,186.0,185.94,78.39]
[1761997961310,2.91,185.98,185.94,78.39]
[1761997961510,2.91,185.96,185.94,78.39]
[1761997962402,2.91,186.01,185.94,78.39]
[1761997962603,2.91,185.99,185.94,75.7]
[1761997962809,2.91,185.97,185.94,78.39]
[1761997965013,2.91,185.97,185.95,2.69]
[1761997968611,2.91,185.97,185.94,75.7]
[1761997969111,2.91,185.97,185.94,78.64]
[1761997969409,2.87,186.0,185.95,2.94]
[1761997969713,9.08550668,185.99,185.95,2.94]
[1761997969910,9.08550668,185.98,185.95,2.94]
[1761997970215,4.68798931,185.97,185.95,2.94]
[1761997970411,1.83274346,186.06,185.95,2.94]
[1761997970606,2.87,186.04,185.95,2.94]
[1761997970912,11.95668013,186.03,185.95,2.94]
[1761997971111,9.08668013,186.02,185.95,2.94]
[1761997971411,9.08668013,186.01,185.95,2.94]
[1761997971608,4.68889589,186.0,185.95,2.94]
[1761997971812,2.87,186.03,185.95,2.94]
[1761997972017,11.95828253,186.02,185.95,2.94]
[1761997972315,9.08828253,186.01,185.95,2.94]
[1761997972503,4.68967161,186.0,185.95,2.94]
[1761997972701,4.68967161,185.99,185.95,2.94]
[1761997972905,2.87,186.02,185.95,2.94]
[1761997973102,9.08947318,186.01,185.95,2.94]
[1761997973302,1.83274346,186.08,185.95,2.94]
[1761997973303,9.08947318,186.0,185.95,2.94]
[1761997973501,4.690286,185.99,185.95,2.94]
[1761997973705,2.87,186.05,185.95,2.94]
[1761997974012,11.96188332,186.04,185.95,2.94]
[1761997974221,9.09188332,186.03,185.95,2.94]
[1761997974420,9.09188332,186.02,185.95,2.94]
[1761997974603,9.09188332,186.01,185.95,2.94]
[1761997974803,4.69153003,186.0,185.96,2.94]
[1761997975008,2.87,186.04,185.97,2.94]
[1761997975204,9.09512082,186.03,185.97,2.94]
[1761997975404,9.09512082,186.02,185.97,2.94]
[1761997975714,2.87,186.07,185.97,2.94]
[1761997975715,4.69340171,186.01,185.98,2.94]
[1761997975907,2.87,186.07,186.0,2.94]
[1761997976106,11.96797074,186.06,186.0,2.94]
[1761997976412,11.96797074,186.05,186.0,2.94]
[1761997976612,9.09797074,186.04,186.0,2.94]
[1761997976813,9.09797074,186.03,186.0,2.94]
[1761997977115,9.09797074,186.02,186.0,2.94]
[1761997977308,4.69500218,186.01,186.0,2.94]
[1761997978918,2.87,186.06,186.0,2.94]
[1761997979114,11.97354485,186.05,186.0,2.94]
[1761997979418,9.10354485,186.04,186.0,2.94]
[1761997979719,4.69799445,186.03,186.0,2.94]
[1761997980017,4.69799445,186.02,186.0,2.94]
[1761997980205,2.87,186.05,186.01,2.94]
[1761997980402,9.10954856,186.04,186.01,2.94]
[1761997980604,9.10954856,186.03,186.01,2.94]
[1761997980818,4.7011376,186.02,186.01,2.94]
[1761997986223,4.7011376,186.02,186.01,7.96607917]
[1761997989429,4.7011376,186.02,186.01,2.94]
[1761997989722,2.87,186.09,186.01,2.94]
[1761997989924,11.98957006,186.08,186.04,2.94]
[1761997990125,9.11957006,186.07,186.06,2.94]
[1761997991637,11.98957006,186.07,186.05,78.64]
[1761997991824,9.11957006,186.06,186.05,78.64]
[1761997994139,9.17254618,186.06,186.05,78.64]
[1761998001150,4.70661239,186.06,186.05,78.64]
[1761998003037,2.87,186.09,186.05,78.64]
[1761998003346,12.02007532,186.08,186.06,2.89]
[1761998003546,9.16007532,186.07,186.06,2.89]
[1761998004047,2.86,186.06,186.05,75.7]
[1761998004346,4.69760648,186.06,186.05,78.59]
[1761998004648,2.86,186.09,186.05,78.59]
[1761998004848,12.01979846,186.08,186.05,78.59]
[1761998005049,9.15979846,186.07,186.05,78.59]
[1761998005251,2.86,186.08,186.05,78.59]
[1761998005450,9.1596912,186.07,186.05,78.59]
[1761998005651,2.86,186.08,186.05,78.59]
[1761998005850,2.86,186.06,186.02,2.89]
[1761998006043,2.86,186.04,186.03,33.62]
[1761998006241,12.0196912,186.04,186.03,33.62]
[1761998008649,12.0196912,186.04,186.02,2.89]
[1761998008949,9.1596912,186.03,186.02,2.89]
[1761998011158,12.0196912,186.03,186.01,78.55]
[1761998011455,4.69760634,186.02,186.01,78.55]
[1761998011952,2.86,186.01,185.98,5.006541]
[1761998012155,9.16667167,186.0,185.99,2.89]
[1761998013253,9.16667167,186.0,185.99,7.896541]
[1761998016055,9.17270989,186.0,185.99,7.896541]
[1761998018357,9.17270989,186.0,185.98,75.68]
[1761998018358,12.03270989,186.0,185.98,75.68]
[1761998018560,9.17270989,185.99,185.98,78.57]
[1761998022954,2.86,186.05,185.99,2.89]
[1761998023160,9.19816939,186.04,186.02,2.89]
[1761998023460,9.19816939,186.03,186.02,78.55]
[1761998031771,12.00816939,186.03,186.02,75.66]
[1761998033472,2.81,186.02,185.99,80.6844429]
[1761998033772,12.00816939,186.01,185.99,83.3944429]
[1761998033972,9.19816939,186.0,185.99,83.3944429]
[1761998041175,9.19667678,186.0,185.99,83.3944429]
[1761998041380,12.00667678,186.0,185.99,80.6844429]
[1761998041578,12.00667678,186.0,185.99,75.66]
[1761998044674,12.00667678,186.0,185.99,78.37]
[1761998044883,9.19667678,186.0,185.99,78.37]
[1761998046481,12.00667678,186.0,185.99,75.66]
[1761998055683,12.00667678,186.0,185.97,5.0244429]
[1761998055881,9.19667678,185.99,185.97,7.7344429]
[1761998056081,9.19667678,185.98,185.97,7.7344429]
[1761998060391,9.19667678,185.98,185.97,2.71]
[1761998060786,2.69,185.97,185.96,5.0244429]
[1761998060985,11.88667678,185.97,185.96,5.0244429]
[1761998062692,11.88845829,185.97,185.96,5.0244429]
[1761998063587,2.69,185.96,185.95,5.0244429]
[1761998063794,11.88845829,185.96,185.95,5.0244429]
[1761998064191,9.19845829,185.96,185.95,7.7744429]
[1761998073805,2.69,185.95,185.93,4.40424168]
[1761998073991,2.69,185.93,185.89,6.6992572]
[1761998074192,2.69,185.91,185.89,6.6992572]
[1761998074501,9.19845829,185.9,185.89,2.75]
[1761998077511,4.48071521,185.9,185.89,2.75]
[1761998077807,9.19106557,185.9,185.89,2.75]
[1761998078010,2.69,185.89,185.88,40.92]
[1761998078212,11.88106557,185.89,185.88,40.92]
[1761998078399,11.88106557,185.89,185.86,2.75]
[1761998078599,11.88106557,185.88,185.86,2.75]
[1761998078803,4.71035036,185.87,185.86,2.75]
[1761998079304,2.69,185.88,185.86,2.75]
[1761998079709,2.69,185.94,185.86,2.75]
[1761998080009,2.69,185.92,185.86,2.75]
[1761998080210,2.69,185.9,185.86,2.75]
[1761998080411,9.18575862,185.89,185.86,2.75]
[1761998080611,4.70717256,185.88,185.86,2.75]
[1761998080811,2.69,185.9,185.86,2.75]
[1761998081015,9.08618265,185.89,185.86,2.75]
[1761998081215,4.7059657,185.88,185.86,2.75]
[1761998081424,2.69,185.9,185.86,2.75]
[1761998081619,4.70496888,185.89,185.86,2.75]
[1761998081916,4.70496888,185.88,185.86,2.75]
[1761998082117,2.69,185.89,185.86,2.75]
[1761998082319,4.70514785,185.88,185.86,2.75]
[1761998082520,2.69,185.89,185.86,2.75]
[1761998082817,4.7041586,185.88,185.86,2.75]
[1761998083119,2.69,185.94,185.86,2.75]
[1761998083316,2.69,185.92,185.86,2.75]
[1761998083520,2.69,185.9,185.86,2.75]
[1761998083720,4.7043742,185.89,185.86,2.75]
[1761998083920,4.7043742,185.88,185.86,2.75]
[1761998084122,2.69,185.9,185.86,2.75]
[1761998084322,4.70358864,185.89,185.86,2.75]
[1761998084515,4.70358864,185.88,185.86,2.75]
[1761998084718,2.69,185.9,185.86,2.75]
[1761998084918,4.70239597,185.89,185.86,2.75]
[1761998085119,4.70239597,185.88,185.86,2.75]
[1761998085319,2.69,185.9,185.86,2.75]
[1761998085520,4.70174858,185.89,185.86,2.75]
[1761998085817,4.70174858,185.88,185.86,2.75]
[1761998086023,2.69,185.9,185.86,2.75]
[1761998086226,11.84810723,185.89,185.86,2.87]
[1761998086420,4.70175057,185.88,185.86,2.87]
[1761998086621,2.77,185.89,185.86,2.87]
[1761998086823,4.70081708,185.88,185.86,2.87]
[1761998087025,2.77,185.89,185.86,2.87]
[1761998087328,4.70081907,185.88,185.86,2.87]
[1761998087528,2.77,185.89,185.86,2.87]
[1761998087728,4.70011098,185.88,185.86,2.87]
[1761998087930,2.77,185.89,185.86,2.87]
[1761998088124,4.70011137,185.88,185.86,2.87]
[1761998088323,2.77,185.89,185.86,2.87]
[1761998088523,4.69950936,185.88,185.86,2.87]
[1761998088723,2.77,185.94,185.86,2.87]
[1761998088923,2.77,185.92,185.86,2.87]
[1761998089219,2.77,185.9,185.86,2.87]
[1761998089523,4.69951171,185.89,185.86,2.87]
[1761998089716,4.69951171,185.88,185.86,2.87]
[1761998089918,2.77,185.99,185.86,2.87]
[1761998090122,2.77,185.95,185.86,2.87]
[1761998090322,2.77,185.93,185.86,2.87]
[1761998090522,11.84331637,185.92,185.86,2.87]
[1761998090728,11.84331637,185.91,185.86,2.87]
[1761998090930,9.07331637,185.9,185.86,2.87]
[1761998091121,4.69923132,185.89,185.86,2.87]
[1761998091319,2.77,185.91,185.86,2.87]
[1761998091518,4.69903355,185.9,185.86,2.87]
[1761998091731,4.69903355,185.89,185.86,2.87]
[1761998091940,2.77,185.87,185.85,12.21319449]
[1761998095828,2.77,185.9,185.86,2.87]
[1761998096042,11.84022209,185.89,185.86,2.87]
[1761998096333,4.69751241,185.88,185.86,2.87]
[1761998096534,2.77,185.89,185.86,2.87]
[1761998096720,4.69758471,185.88,185.86,2.87]
[1761998096920,2.77,185.89,185.86,2.87]
[1761998097121,4.69758471,185.88,185.86,2.87]
[1761998097326,2.77,185.89,185.86,2.87]
[1761998097528,4.69755731,185.88,185.86,2.87]
[1761998097728,2.77,185.89,185.86,2.87]
[1761998097929,4.69755332,185.88,185.86,2.87]
[1761998098129,2.77,185.89,185.86,2.87]
[1761998098332,2.77,185.87,185.85,12.21319449]
[1761998098523,2.77,185.9,185.86,2.87]
[1761998098735,11.84058514,185.89,185.86,2.87]
[1761998099036,4.69770006,185.88,185.86,2.87]
[1761998099231,2.77,185.89,185.86,2.87]
[1761998099433,4.69794647,185.88,185.86,2.87]
[1761998099632,2.77,185.89,185.86,2.87]
[1761998099832,4.69794665,185.88,185.86,2.87]
[1761998100037,2.77,185.89,185.86,2.87]
[1761998100340,4.69794665,185.88,185.86,2.87]
[1761998100638,2.77,185.89,185.86,2.87]
[1761998100837,4.69824905,185.88,185.86,2.87]
[1761998101036,2.77,185.89,185.86,2.87]
[1761998101241,4.69824905,185.88,185.86,2.87]
[1761998101440,2.77,185.92,185.86,2.87]
[1761998101733,9.07258526,185.91,185.86,2.87]
[1761998101941,11.84258526,185.9,185.86,2.87]
[1761998102126,4.69883675,185.89,185.86,2.87]
[1761998102330,4.69883675,185.88,185.86,2.87]
[1761998102527,2.77,185.9,185.86,2.87]
[1761998102730,4.69940035,185.89,185.86,2.87]
[1761998102938,2.77,185.94,185.86,2.87]
[1761998103143,11.84436183,185.93,185.86,2.87]
[1761998103443,9.07436183,185.92,185.86,2.87]
[1761998103740,9.07436183,185.91,185.86,2.87]
[1761998103936,2.77,185.96,185.87,2.87]
[1761998104137,11.84616391,185.95,185.87,2.87]
[1761998104333,9.07616391,185.94,185.87,2.87]
[1761998104639,9.07616391,185.93,185.87,2.87]
[1761998104840,9.07616391,185.92,185.87,2.87]
[1761998105041,4.70099307,185.91,185.87,2.87]
[1761998105241,2.77,185.95,185.87,2.87]
[1761998105442,11.84989612,185.94,185.87,2.87]
[1761998105644,9.07989612,185.93,185.87,2.87]
[1761998105943,9.07989612,185.92,185.87,2.87]
[1761998106143,4.70292729,185.91,185.87,2.87]
[1761998106439,4.70387302,185.9,185.87,2.87]
[1761998106641,2.77,185.97,185.87,2.87]
[1761998106837,9.08259938,185.96,185.87,2.87]
[1761998107037,9.08259938,185.95,185.87,2.87]
[1761998107237,9.08259938,185.94,185.87,2.87]
[1761998107442,9.08259938,185.93,185.87,2.87]
[1761998107644,9.08259938,185.92,185.87,2.87]
[1761998107840,4.70434248,185.91,185.87,2.87]
[1761998108149,2.77,185.97,185.87,2.87]
[1761998108344,9.08549127,185.96,185.87,2.87]
[1761998108637,9.08549127,185.95,185.87,2.87]
[1761998108845,9.08549127,185.94,185.87,2.87]
[1761998109146,9.08549127,185.93,185.87,2.87]
[1761998109445,4.70584034,185.92,185.87,2.87]
[1761998109648,2.77,185.96,185.87,2.87]
[1761998109945,9.08952074,185.95,185.87,2.87]
[1761998110143,4.70818637,185.94,185.89,1.8347148]
[1761998110346,4.70818637,185.93,185.91,2.87]
[1761998110548,2.77,185.99,185.91,2.87]
[1761998110742,9.09081173,185.98,185.91,2.87]
[1761998110943,9.09081173,185.97,185.91,2.87]
[1761998111146,9.09081173,185.96,185.91,2.87]
[1761998111344,9.09081173,185.95,185.91,2.87]
[1761998111551,4.70897189,185.94,185.91,2.87]
[1761998111741,4.70897189,185.93,185.91,2.87]
[1761998111941,2.77,185.99,185.91,2.87]
[1761998112140,9.09461961,185.98,185.91,2.87]
[1761998112340,9.09461961,185.97,185.91,2.87]
[1761998112551,9.09461961,185.96,185.91,2.87]
[1761998112849,4.70960771,185.95,185.91,2.87]
[1761998113045,2.77,185.99,185.91,2.87]
[1761998113347,9.09628623,185.98,185.91,2.87]
[1761998113550,9.09628623,185.97,185.91,2.87]
[1761998113738,4.71053209,185.96,185.91,2.87]
[1761998113943,2.77,185.99,185.91,2.87]
[1761998114138,9.09585601,185.98,185.91,2.87]
[1761998114443,9.09585601,185.97,185.91,2.87]
[1761998114645,4.7103108,185.96,185.92,2.87]
[1761998114839,2.77,185.99,185.93,2.87]
[1761998115042,9.09547807,185.98,185.93,2.87]
[1761998115346,4.71028665,185.97,185.93,2.87]
[1761998115547,2.77,185.99,185.93,2.87]
[1761998115747,9.09385564,185.98,185.93,2.87]
[1761998115947,4.70944644,185.97,185.93,2.87]
[1761998116149,2.77,185.99,185.93,2.87]
[1761998116351,9.09385564,185.98,185.93,2.87]
[1761998116536,4.70944644,185.97,185.93,2.87]
[1761998116736,2.77,185.99,185.93,2.87]
[1761998116935,9.09241529,185.98,185.93,2.87]
[1761998117136,4.70870053,185.97,185.93,2.87]
[1761998117343,2.77,185.99,185.93,2.87]
[1761998117550,4.70798236,185.98,185.93,2.87]
[1761998117750,4.70798236,185.97,185.93,2.87]
[1761998117952,2.77,185.99,185.93,2.87]
[1761998118250,4.70798113,185.98,185.93,2.87]
[1761998118558,4.70798113,185.97,185.93,2.87]
[1761998118849,2.77,185.99,185.93,2.87]
[1761998119148,4.70728857,185.98,185.93,2.87]
[1761998119350,4.70728857,185.97,185.93,2.87]
[1761998119549,2.77,185.99,185.93,2.87]
[1761998119750,4.70596363,185.98,185.93,2.87]
[1761998119949,4.70596363,185.97,185.93,2.87]
[1761998120148,2.77,185.99,185.93,2.87]
[1761998120347,4.70596363,185.98,185.93,2.87]
[1761998120552,2.77,185.99,185.93,2.87]
[1761998120750,4.70474376,185.98,185.93,2.87]
[1761998120952,2.77,185.99,185.93,2.87]
[1761998121252,7.40474376,185.98,185.93,2.87]
[1761998121454,2.7,185.98,185.93,2.87]
[1761998123252,4.70383126,185.97,185.93,2.87]
[1761998123551,2.7,185.98,185.93,2.87]
[1761998126349,4.5347148,186.0,185.93,2.87]
[1761998126549,4.70203348,185.99,185.93,2.87]
[1761998126749,4.70203348,185.98,185.93,2.87]
[1761998126957,4.5347148,186.0,185.93,2.87]
[1761998127146,4.70203339,185.99,185.93,2.87]
[1761998127346,4.70203339,185.98,185.93,2.87]
[1761998127552,4.5347148,186.0,185.93,2.87]
[1761998127851,4.70161077,185.99,185.93,2.87]
[1761998128051,4.70161077,185.98,185.93,2.87]
[1761998128251,4.5347148,186.0,185.93,2.87]
[1761998128451,4.70126522,185.99,185.93,2.87]
[1761998128649,4.70126522,185.98,185.93,2.87]
[1761998128851,2.7,185.99,185.93,2.87]
[1761998129051,4.70126522,185.98,185.93,2.87]
[1761998129249,2.7,185.98,185.93,2.87]
[1761998130259,1.8347148,186.0,185.93,2.87]
[1761998130454,4.70078567,185.99,185.93,2.87]
[1761998130650,4.5347148,186.0,185.93,2.87]
[1761998130944,4.70078643,185.99,185.93,2.87]
[1761998131249,4.5347148,186.0,185.93,2.87]
[1761998131449,4.70055247,185.99,185.93,2.87]
[1761998131645,4.5347148,186.0,185.93,2.87]
[1761998132354,2.7,186.0,185.93,2.87]
[1761998133855,2.7,186.0,185.93,7.87546328]
[1761998134061,2.7,186.0,185.94,2.88]
[1761998139262,2.7,186.0,185.94,7.88546328]
[1761998139465,2.7,186.0,185.95,2.88]
[1761998140265,4.7043461,185.99,185.95,2.88]
[1761998140559,2.7,186.02,185.95,2.88]
[1761998140766,7.40500566,186.01,185.97,2.88]
[1761998141073,2.7,186.01,185.97,2.88]
[1761998146169,2.7,186.01,185.98,2.92]
[1761998146465,7.6505708,186.0,185.98,2.92]
[1761998146666,2.94,186.0,185.98,2.92]
[1761998148870,2.86363582,186.05,185.98,2.92]
[1761998149066,2.94,186.03,185.98,2.92]
[1761998149271,12.07135469,186.02,185.98,2.92]
[1761998149470,9.13135469,186.01,185.98,2.92]
[1761998149770,4.71325098,186.0,185.98,2.92]
[1761998149967,4.71325098,186.0,185.97,5.00546328]
[1761998149968,2.94,186.01,185.97,5.00546328]
[1761998150272,2.86363582,186.08,185.97,5.00546328]
[1761998150273,2.94,185.99,185.98,5.00546328]
[1761998150467,7.65359232,185.99,185.98,5.00546328]
[1761998151271,9.13332205,185.99,185.97,2.92]
[1761998151465,2.94,186.02,185.99,2.92]
[1761998151664,9.13841734,186.01,185.99,2.92]
[1761998151971,9.13841734,186.0,185.99,2.92]
[1761998154173,9.13841734,186.0,185.99,7.92546328]
[1761998156275,9.13841734,186.0,185.99,2.92]
[1761998159575,4.7168964,186.0,185.99,2.92]
[1761998159876,4.7168964,186.0,185.99,9.6192572]
[1761998161380,2.94,186.05,186.0,2.92]
[1761998161575,2.94,186.03,186.02,5.02824344]
[1761998161776,12.08788251,186.03,186.02,5.02824344]
[1761998162273,9.14788251,186.03,186.02,7.94824344]
[1761998167576,4.72210074,186.03,186.02,2.92]
[1761998168580,7.66210074,186.03,186.02,5.02374447]
[1761998168780,7.65859396,186.03,186.02,5.02374447]
[1761998170482,2.94,186.02,186.0,5.02374447]
[1761998170670,12.08018835,186.01,185.99,5.02374447]
[1761998170876,12.11306198,186.0,185.99,5.02374447]
[1761998172384,2.94,185.99,185.98,5.02374447]
[1761998172584,12.11306198,185.99,185.98,5.02374447]
[1761998174182,12.11276498,185.99,185.96,6.6992572]
[1761998174386,7.65829696,185.98,185.96,9.6192572]
[1761998174588,2.94,185.98,185.96,9.6192572]
[1761998182793,2.94,185.98,185.97,2.82]
[1761998182992,7.66107093,185.98,185.97,2.82]
[1761998183192,7.66107093,185.98,185.97,9.5192572]
[1761998183991,2.86363582,186.03,185.98,2.82]
[1761998183992,2.91,186.03,185.98,2.82]
[1761998184191,12.09175432,186.02,186.01,5.02981666]
[1761998184379,9.18175432,186.02,186.01,7.84981666]
[1761998184581,9.18175432,186.02,186.01,2.82]
[1761998190287,2.91,186.01,185.99,82.3792572]
[1761998190488,7.6322236,186.0,185.99,82.4192572]
[1761998190796,12.09110656,186.0,185.99,75.72]